Cogmind - Beta 15 @@@ ROGUE MODE // 2025.07.14 @ 18:00:44 Player: chebyrekser Result: Destroyed by IB-Q9X(R) with Subdweller Shrapnel Launcher Performance ------------- Evolutions (0) 0 Regions Visited (2) 400 Robots Destroyed (27) 135 Value Destroyed (462) 462 Prototype IDs (0) 0 Alien Tech Used (0) 0 Bonus (0) 0 TOTAL SCORE: 997 Bonus ------- None Cogmind --------- Core Integrity 0/250 Matter 299/300 Energy 197/200 System Corruption 0% Temperature Cool (0) Movement Core (150) Ox2 Location -10/Subcaves Parts ------- > --- POWER (1) -------- Subdweller Power Source > --- PROPULSION (2) --- (None) > --- UTILITY (2) ------ (None) > --- WEAPON (2) ------- Subdweller Laser > --- INVENTORY (5) ---- Light Treads Subdweller Optics Flamer Makeshift Hammer Peak State ------------ > --- POWER ------------ Subdweller Power Source > --- PROPULSION ------- Light Treads Light Treads > --- UTILITY ---------- Scrap Shield > --- WEAPON ----------- Subdweller Beam Cannon Light Assault Rifle > --- INVENTORY -------- Light Treads Subdweller Optics Subdweller Laser Flamer Makeshift Hammer [Rating: 12] Favorites ----------- Power Subdweller Power Source Engine Subdweller Power Source Propulsion Light Treads Treads Light Treads Leg Aluminum Leg Utility Small Storage Unit Device Structural Scanner Storage Small Storage Unit Protection Scrap Shield Weapon Assault Rifle Energy Gun Subdweller Laser Energy Cannon Particle Cannon Ballistic Gun Assault Rifle Special Weapon Mining Laser Build | -11 -10 -10 ------- Run | Yrd Mat Sub Slots Evolved . | . . . Power . | . . . Propulsion . | . . . Utility . | . . . Weapon . | . . . Parts Attached 19 | 6 6 7 Power 2 | . 1 1 Engine 2 | . 1 1 Core . | . . . Reactor . | . . . Propulsion 7 | 4 1 2 Treads 5 | 2 1 2 Leg 2 | 2 . . Wheel . | . . . Hover . | . . . Flight . | . . . Utility 3 | 1 1 1 Device 1 | . 1 . Storage 1 | 1 . . Processor . | . . . Hackware . | . . . Protection 1 | . . 1 Artifact . | . . . Weapon 7 | 1 3 3 Energy Gun 1 | . . 1 Energy Cannon 2 | . 1 1 Ballistic Gun 3 | 1 1 1 Ballistic Cannon . | . . . Launcher . | . . . Special Weapon 1 | . 1 . Impact Weapon . | . . . Slashing Weapon . | . . . Piercing Weapon . | . . . Special Melee Weapon . | . . . Unidentified Prototypes . | . . . Parts Lost 9 | . 2 7 Power . | . . . Propulsion 5 | . 1 4 Utility 1 | . . 1 Weapon 3 | . 1 2 Highest Loss Streak 4 | . 1 4 To Critical Strikes 1 | . 1 . Average Backups 5 | 4 5 4 Power . | . . . Propulsion 1 | 1 2 1 Utility . | . . . Weapon 1 | 1 1 2 Tool/Special . | . . . Unused Backups 6 | . 2 4 Power . | . . . Propulsion 1 | . . 1 Utility 2 | . 1 1 Weapon 2 | . . 2 Tool/Special 1 | . 1 . Average Slot Usage (%) 90 | . 86 94 Engine 8 | . 4 13 Treads 26 | . 26 27 Device 11 | . 13 10 Storage 12 | . 14 10 Protection 1 | . . 3 Energy Cannon 10 | . 8 13 Ballistic Gun 13 | . 17 7 Special Weapon 3 | . 1 5 Peak Build Rating 12 | 4 8 12 Average Rating 7 | 2 6 9 On Entrance 4 | . 4 8 Naked Turns . | . . . Heaviest Build 32 | 7 17 32 Greatest Support 40 | 40 40 40 Greatest Overweight (x) . | . . . Average Overweight (x) . | . . . Largest Inventory Capacity 8 | 8 8 8 Average Capacity 7 | 6 8 7 Most Carried 8 | 5 8 5 Average Carried 5 | 4 5 4 Final Capacity 8 | 8 8 5 Final Carried 5 | 5 5 4 Class Distribution -------------------- 63% | Mutant 26% | Scavenger-Mutant 10% | Subdweller-Mutant Dominant Class ---------------- Mutant | -10/Materials Scavenger-Mutant | -10/Subcaves Resources | -11 -10 -10 ----------- Run | Yrd Mat Sub Matter Collected 727 | 247 378 102 Remotely . | . . . Salvage Created 749 | . 582 167 Parts 60 | . 50 10 Haulers Intercepted 2 | . 2 . Recyclers Shooed 2 | . 2 . Parts Field Recycled . | . . . Retrieved Matter . | . . . Parts Self-Destructed 11 | . . 11 Prevented . | . . . Kills | -11 -10 -10 ------- Run | Yrd Mat Sub Combat Hostiles Destroyed 20 | . 15 5 Guns 13 | . 11 2 Cannons 7 | . 4 3 Classes Destroyed 8 | . 7 1 Worker 1 | . 1 . Builder 1 | . 1 . Hauler 2 | . 2 . Recycler 1 | . 1 . Watcher 2 | . 2 . Swarmer 12 | . 9 3 Grunt 6 | . 6 . Subdweller 2 | . . 2 Best Kill Streak 7 | . 7 3 Combat Bots Only 3 | . 3 3 Max Kills in Single Turn 1 | . 1 1 Gunslinging . | . . . Exploded . | . . . Melee . | . . . Uniques/NPCs Destroyed . | . . . Combat | -11 -10 -10 -------- Run | Yrd Mat Sub Hostile Shots Fired 132 | . 91 41 Missed 30 | . 21 9 Hits 102 | . 70 32 Projectile 102 | . 70 32 AOE 8 | . . 8 Critical Strikes 1 | . 1 . Damage Taken 1514 | . 624 890 Core 260 | . 102 158 Absorbed by Shields . | . . . Core Remaining (%) 100 | 100 . . Volleys Fired 117 | . 82 35 Largest 2 | . 2 2 Hottest 100 | . 100 100 Shots Fired 190 | . 137 53 Gun 115 | . 89 26 Cannon 48 | . 33 15 Launcher . | . . . Special 27 | . 15 12 Kinetic 108 | . 89 19 Thermal 82 | . 48 34 Explosive . | . . . Electromagnetic . | . . . Robot Hit Streak 16 | . 13 16 Robot Miss Streak 4 | . 4 2 Penetration Max . | . . . Secondary Targets . | . . . Shots Hit Robots 103 | . 73 30 Core Hits 35 | . 27 8 Critical Kills . | . . . Critical Parts Destroyed . | . . . Critical Strikes . | . . . Melee Attacks . | . . . Impact . | . . . Slashing . | . . . Piercing . | . . . Sneak Attacks . | . . . Combat Hostiles . | . . . Follow-up Attacks . | . . . Damage Inflicted 1597 | . 1114 483 Guns 949 | . 694 255 Cannons 645 | . 417 228 Explosions . | . . . Melee . | . . . Ramming 3 | . 3 . Kinetic 812 | . 694 118 Thermal 782 | . 417 365 Explosive . | . . . Electromagnetic . | . . . Impact . | . . . Slashing . | . . . Piercing . | . . . Highest Corruption . | . . . Average Corruption . | . . . Corruption Purged . | . . . Corruption Blocked . | . . . Overload Shots . | . . . Overflow Damage 6 | . 6 . Projectiles 6 | . 6 . Explosions . | . . . Melee . | . . . Knockbacks . | . . . Impact . | . . . Kinetic . | . . . Secondary . | . . . Self-Inflicted Damage . | . . . Shots . | . . . Rammed 1 | . 1 . Targets Rammed 1 | . 1 . Kicked . | . . . Crushed . | . . . Highest Temperature 156 | . 156 40 Average Temperature 43 | . 47 14 Received Heat Transfer 297 | . 174 123 Siege Activations . | . . . Martial Activations . | . . . Shielding Activations . | . . . Robots Disrupted . | . . . Combat Hostiles . | . . . Robots Corrupted . | . . . Combat Hostiles . | . . . Parts Fried . | . . . Impact Corruptions . | . . . Robots Melted . | . . . Combat Hostiles . | . . . Parts Melted 2 | . 2 . Heat Transferred 1285 | . 740 545 Parts Sabotaged . | . . . Parts Stolen . | . . . Parts Stripped . | . . . Power Chain Reactions . | . . . Alert | -11 -10 -10 ------- Run | Yrd Mat Sub Maximum Alert Level 1 | . 1 . Low Security (%) 56 | 100 53 . Level 1 43 | . 46 . Level 2 . | . . . Level 3 . | . . . Level 4 . | . . . Level 5 . | . . . High Security . | . . . Max Security . | . . . Peak Influence 258 | . 258 . Initial . | . . . Average 147 | . 158 . Influence Increases 614 | . 544 70 Destroy 0b10 Robot/C 360 | . 300 60 Destroy 0b10 Robot/NC 35 | . 35 . Destroy Leader 68 | . 58 10 Successful Hack 14 | . 14 . Disable Machine 15 | . 15 . Destroy Structure 2 | . 2 . Lose Combat Pursuer 120 | . 120 . Influence Decreases 614 | . 351 263 Entered New Map 93 | . . 93 Time Decay 471 | . 331 140 Lost Part 50 | . 20 30 Squads Dispatched 2 | . 2 . Investigation 1 | . 1 . Extermination . | . . . Reinforcement 1 | . 1 . Assault . | . . . Garrison . | . . . Intercept . | . . . Searches Triggered . | . . . Construction Impeded . | . . . Haulers Reinforced . | . . . Active Scanning Responses . | . . . Cargo Convoy Interrupts . | . . . Stealth | -11 -10 -10 --------- Run | Yrd Mat Sub Distress Signals 2 | . 2 . Communications Jammed . | . . . Distress Signals . | . . . Times Spotted 33 | . 26 7 Peak Tracking Total 4 | . 4 3 Tactical Retreats 5 | . 5 . Traps | -11 -10 -10 ------- Run | Yrd Mat Sub Traps Triggered . | . . . Indirectly . | . . . Trap Hack Attempts . | . . . Triggered . | . . . Disarmed . | . . . Reprogrammed . | . . . Reused . | . . . Traps Extracted . | . . . Installed . | . . . Triggered . | . . . Machines | -11 -10 -10 ---------- Run | Yrd Mat Sub Machines Disabled 1 | . 1 . Max in Single Turn 1 | . 1 . Machines Repaired . | . . . Machines Dismantled . | . . . Machines Sabotaged . | . . . Overloaded Fab Kills . | . . . Hacking | -11 -10 -10 --------- Run | Yrd Mat Sub Machines Accessed 3 | . 3 . Terminals 3 | . 3 . Fabricators . | . . . Repair Stations . | . . . Recycling Units . | . . . Scanalyzers . | . . . Garrison Access . | . . . Total Hacks 11 | . 11 . Successful 5 | . 5 . Failed 6 | . 6 . Catastrophic . | . . . Database Lockouts . | . . . Manual 11 | . 11 . Terminals 11 | . 11 . Fabricators . | . . . Repair Stations . | . . . Recycling Units . | . . . Scanalyzers . | . . . Garrison Access . | . . . Terminal Hacks 2 | . 2 . Robot Analysis 1 | . 1 . Zone Layout 1 | . 1 . Fabricator Hacks . | . . . Repair Station Hacks . | . . . Recycling Unit Hacks . | . . . Scanalyzer . | . . . Garrison Access Hacks . | . . . Unauthorized Hacks 3 | . 3 . Terminals 3 | . 3 . Botnet 3 | . 3 . Fabricators . | . . . Repair Stations . | . . . Recycling Units . | . . . Scanalyzers . | . . . Garrison Access . | . . . Data Cores Recovered . | . . . Used . | . . . Hacking Detections 3 | . 3 . Full Trace Events 1 | . 1 . Feedback Events . | . . . Feedback Blocked . | . . . Robot Schematics Acquired . | . . . Robots Built . | . . . Authchips . | . . . Time . | . . . Total Robot Build Rating . | . . . Part Schematics Acquired . | . . . Parts Built . | . . . Authchips . | . . . Time . | . . . Total Part Build Rating . | . . . Parts Repaired . | . . . Time . | . . . Parts Recycled . | . . . Recycled Matter . | . . . Retrieved Matter . | . . . Retrieved Components . | . . . Parts Scanalyzed . | . . . Part Schematics Acquired . | . . . Parts Damaged . | . . . Bothacking | -11 -10 -10 ------------ Run | Yrd Mat Sub Used RIF Installer . | . . . Robots Hacked . | . . . Non-combat . | . . . Combat . | . . . Robot Hacks Applied . | . . . Relay Couplers Released . | . . . Fabnet Peak Effective % . | . . . Robots Rewired . | . . . Allies Hacked . | . . . Hacks Repelled . | . . . Allies | -11 -10 -10 -------- Run | Yrd Mat Sub Total Allies . | . . . Largest Group . | . . . Highest-Rated Group . | . . . Highest-Rated Ally . | . . . Total Orders . | . . . Ally Attacks . | . . . Total Damage . | . . . Kills . | . . . Allies Corrupted . | . . . Allies Melted . | . . . Intel | -11 -10 -10 ------- Run | Yrd Mat Sub Active Infowar (turns) 1420 | . 827 593 Structural 1420 | . 827 593 Robot Analysis Total 1 | . 1 . Derelict Logs Recovered 2 | . . 2 Drone Launches . | . . . Drone Recoveries . | . . . Exploration | -11 -10 -10 ------------- Run | Yrd Mat Sub Turns Passed 1731 | 67 875 789 Spaces Moved 831 | 51 371 409 Core 22 | 22 . . Treads 798 | 18 371 409 Legs 11 | 11 . . Wheels . | . . . Hover . | . . . Flight . | . . . Fastest Speed 50 | 50 160 160 Average Speed 156 | 103 160 160 Slowest Speed 160 | 160 160 160 Overloaded Moves . | . . . Propulsion Burnouts . | . . . Robots Hopped . | . . . Potential Cave-ins . | . . . Cave-ins Triggered . | . . . Exploration Rate (%) 34 | 3 62 39 Regions Visited 2 Branch Regions 1 Pre-discovered Areas 1 | . . 1 Known Exits Taken . | . . . Unknown Exits Taken 2 | 1 1 . Scrap Searched . | . . . Spaces Dug 9 | . 8 1 Terrain Destroyed 9 | . 8 1 Melee . | . . . Projectile 9 | . 8 1 AOE . | . . . Terrain Rammed . | . . . Walls Destroyed . | . . . Machines Disabled . | . . . Actions | -11 -10 -10 --------- Run | Yrd Mat Sub Total 1019 | 62 486 471 Wait 20 | . 15 5 Move 829 | 50 370 409 Hop . | . . . Pick Up 19 | 5 8 6 Fast Attach 6 | 4 1 1 Attach 10 | . 4 6 Detach . | . . . Swap 7 | 3 1 3 Drop 10 | . 4 6 Fire 117 | . 82 35 Melee . | . . . Ram . | . . . Kick . | . . . Crush 1 | . 1 . Escape Stasis . | . . . Rewire . | . . . Trap . | . . . Miscellaneous . | . . . Route ------- -11/Scrapyard -10/Materials (discovered 3 exits: [Mat] / [*Min] / [*Sub]) -10/Subcaves (discovered 2 exits: [*Mat] / [*Scr]) History --------- Turn | Location | Event 8 | -11/Scrapyard | Discovered new exit (range 15) 68 | -11/Scrapyard | Entered Materials 219 | -10/Materials | Discovered new exit (range 8) 308 | -10/Materials | Build established: Mutant 523 | -10/Materials | Discovered new exit (range 8) 927 | -10/Materials | Discovered new exit (range 11) 943 | -10/Materials | Entered Subcaves 944 | -10/Subcaves | Approached by a straggling Scientist 950 | -10/Subcaves | Discovered new exit (range 9) 996 | -10/Subcaves | Scientist uncovered a shortcut to Scraptown 1046 | -10/Subcaves | Core integrity fell below 50% 1086 | -10/Subcaves | Lost 3 parts (2n1w) 1153 | -10/Subcaves | Shifting Twisted Machinery released Sub. Power Source 1153 | -10/Subcaves | Shifting Twisted Machinery released Sub. Laser 1313 | -10/Subcaves | Shifting Twisted Machinery released Flamer 1321 | -10/Subcaves | Shifting Twisted Machinery released Humpback 1375 | -10/Subcaves | Learned Materials emergency access door positions 1392 | -10/Subcaves | Build established: Scavenger-Mutant 1728 | -10/Subcaves | Core integrity fell below 20% 1732 | -10/Subcaves | Destroyed by IB-Q9X(R) with Subdweller Shrapnel Launcher Last Messages --------------- Flight Unit fries itself beyond repair. Lgt. Assault Rifle fries itself beyond repair. Acquired 13 matter. Subatomizers dissect the Lgt. Assault Rifle. Lgt. Assault Rifle fries itself beyond repair. Flight Unit fries itself beyond repair. Lgt. Ion Engine fries itself beyond repair. Dropped Structural Scanner. Dropped Sml. Storage Unit. Acquired Scrap Shield. Acquired 10 matter. Dropped Mining Laser. Subatomizers dissect the Structural Scanner. Acquired Mak. Hammer. Lgt. Treads destroyed. Sub. Beam Cannon shoots sparks and powers down. Dropped Broken Sub. Beam Cannon. Scrap Shield destroyed. Lgt. Assault Rifle destroyed. Lgt. Treads destroyed. Map ----- +----------------------------------------------------+ | ????????????????????????????????????????????????? | | ????????????????????????????????????????????????? | | ????????????????????????????????????????????????? | | ????????????????????????????????????????????????? | | ????????????????????????????????????????????????? | | ????????????????????????????????????????????????? | | ????????????????????????????????????????????????? | | ????????????????????????????????????????????????? | | ????????????????????????????????????????????????? | | ????????????????????????????????????????????????? | | ????????????????????????????????????????????????? | | ????????????????????###?????###??????????####???? | | ??????????????? ???# ###?## #???##???# ##??? | | ???????????????# ??# ## #?## ### #### | | ??????????????## #?# ## # | | ??????????????# ## ## " # | | ??????????????## ## < | | ??????????????# ## < < ##### | | ??????????????# # & ##???????# | | ??????????????# ? ;; < < #?##?????# | | ??????????????## ## ; ; & # ### #???## | | ??????????????# ; #### ## #??# | | ??????????????# ; #### #?# ??# | | ??????????????#; ## #?# ### | | ??????????????#; ### | | ??????????????#;; @ ## | | ???????????????#; ## | | ???????????????#; ## #### | | ???????????????# #### #### | | ???????????????## #??### ## | | ????????????????## ### #???# | | ?????????????????####??## R #??####### ## | | ?????????????????????????# R ???????## ### | | ??????????????????????????# ???????## ##?? | | ???????????????????????????### #???????# #??? | | ??????????????????????????????## #???????# #??? | | ????????????????????????????????# #???????####??? | | ?????????????????????????????????#??????????????? | | ????????????????????????????????????????????????? | | ????????????????????????????????????????????????? | | ????????????????????????????????????????????????? | | ????????????????????????????????????????????????? | | ????????????????????????????????????????????????? | | ????????????????????????????????????????????????? | | ????????????????????????????????????????????????? | | ????????????????????????????????????????????????? | | ????????????????????????????????????????????????? | | ????????????????????????????????????????????????? | | ????????????????????????????????????????????????? | | ????????????????????????????????????????????????? | +----------------------------------------------------+ Best States ------------- Heat Dissipation 25 Energy Generation 15 Energy Capacity 250 Matter Stores 300 Matter Capacity 300 Sight Range 16 Terrain Scan Density 10 Armor Coverage 800 Evasion (%) 50 Recoil Reduction 2 Item Schematics ----------------- None Robot Schematics ------------------ None Fabricated ------------ Nothing Repaired ---------- Nothing Alien Tech Used ----------------- None Achievements -------------- None Challenges ------------ None Game ------ Seed ContainmentNodeCompactor Manual? 0 Play Time 00:10:46 Cumulative 10.8 hours Start 2025.07.14 @ 17:49:57 End 2025.07.14 @ 18:00:44 Sessions 1 Manual Loads 0 Difficulty Rogue Special Mode None Game No. 5 Rogue 5 Adventurer 0 Explorer 0 Win Type - Total 1 Types 1/0/0/0/0/0/0/0/0/0 Lore% 14 Gallery% 17 Achievement% 22 Wizard Run 0 Options --------- Layout 1 ASCII 0 Keyboard 0 Movement Mouse Keybinds 0 Fullscreen 1 Font 24/Smallcaps Map View 50x35 Zoom Use 0% Tactical HUD 0 Map Filters NONE Filters NONE Steam 1 RUN: d2dace29-d338-4acd-9c3f-c6e17cf50f78